bitfinex-derivatives/quotes_BTCF0:USTF0_20251120
["timestamp","ask_amount","ask_price","bid_price","bid_amount"]
[1763615400517,0.03797,92988.0,92987.0,0.08269803]
[1763615400727,0.00010733,92993.0,92992.0,0.0805]
[1763615400927,0.00010733,92993.0,92992.0,0.08269803]
[1763615401833,0.00016125,93011.0,92992.0,0.19033383]
[1763615402029,0.10777555,93011.0,93001.0,0.3608]
[1763615402333,0.10777555,93011.0,93010.0,0.03949803]
[1763615402334,0.07390125,93011.0,93010.0,0.03949803]
[1763615402533,0.07374,93002.0,93001.0,0.3608]
[1763615402727,0.07379428,93002.0,93001.0,0.36299803]
[1763615403033,0.07379428,93002.0,93001.0,0.43816803]
[1763615403423,5.428e-05,93002.0,93001.0,0.43816803]
[1763615404629,0.00016125,93011.0,93010.0,0.1827854]
[1763615404832,0.39765,93025.0,93024.0,0.07517]
[1763615405026,0.43454,93025.0,93024.0,0.07736803]
[1763615405228,0.43454,93025.0,93024.0,0.00219803]
[1763615405630,0.43454,93025.0,93024.0,0.03949803]
[1763615405926,0.43454,93025.0,93024.0,0.00219803]
[1763615406740,0.1813484,93016.0,93015.0,0.00016125]
[1763615407126,0.1813484,93016.0,93015.0,0.00235928]
[1763615408337,0.1823484,93016.0,93015.0,0.00235928]
[1763615408837,0.5431484,93016.0,93015.0,0.00016125]
[1763615409635,0.5639284,93016.0,93015.0,0.00016125]
[1763615410426,0.5639284,93016.0,93002.0,0.3608]
[1763615410427,0.1813635,93003.0,93002.0,0.3608]
[1763615410734,0.03685,92993.0,92992.0,0.43597]
[1763615410941,0.1076265,93001.0,92995.0,0.1076326]
[1763615411143,0.03685,92997.0,92996.0,0.07736803]
[1763615411444,0.07374,92997.0,92996.0,0.07736803]
[1763615412027,0.02078,93005.0,92996.0,0.07736803]
[1763615412230,0.09452,93005.0,93004.0,0.07517]
[1763615412432,0.00016125,93006.0,93005.0,0.2015611]
[1763615412636,0.00016125,93006.0,93005.0,0.20375913]
[1763615413639,0.09452,93024.0,93023.0,0.0373]
[1763615413831,0.09452,93024.0,93023.0,0.00219803]
[1763615415451,0.09652,93024.0,93023.0,0.00219803]
[1763615415742,0.09752,93024.0,93023.0,0.00219803]
[1763615417532,0.09752,93024.0,93014.0,0.36096125]
[1763615417533,0.07374,93015.0,93014.0,0.36096125]
[1763615417731,0.07374,93015.0,93014.0,0.36315928]
[1763615419042,0.07374,93015.0,93014.0,0.00235928]
[1763615419043,0.07574,93015.0,93014.0,0.00235928]
[1763615419433,0.07574,93015.0,93014.0,0.00016125]
[1763615419831,0.07574,93015.0,93014.0,0.03965928]
[1763615420044,0.07574,93015.0,93014.0,0.07752928]
[1763615421735,0.03885,93015.0,93014.0,0.07752928]
[1763615422042,0.002,93015.0,93014.0,0.07752928]
[1763615422944,0.07574,93015.0,93014.0,0.00235928]
[1763615423547,0.07574,93015.0,93014.0,0.00016125]
[1763615424040,0.43654,93015.0,93014.0,0.00016125]
[1763615425249,0.1813646,93002.0,93001.0,0.3608]
[1763615425549,0.1813646,93002.0,93001.0,0.36299803]
[1763615425954,0.07374,93002.0,93001.0,0.36299803]
[1763615426147,0.07374,93002.0,93001.0,0.43816803]
[1763615426542,0.03685,93002.0,93001.0,0.43816803]
[1763615427652,0.03785,93002.0,93001.0,0.43816803]
[1763615428042,0.001,93002.0,93001.0,0.43816803]
[1763615430746,0.03401,93002.0,93001.0,0.43816803]
[1763615431056,0.06921,93002.0,93001.0,0.43816803]
[1763615431645,0.06921,93002.0,93001.0,0.40029803]
[1763615433147,0.06921,93002.0,93001.0,0.36299803]
[1763615433463,0.001,93002.0,93001.0,0.53813373]
[1763615433656,0.1409846,93002.0,93001.0,0.43050803]
[1763615433956,0.1760746,93002.0,93001.0,0.43050803]
[1763615434151,0.1760746,93002.0,93001.0,0.39560803]
[1763615434941,0.1760746,93002.0,93001.0,0.36299803]
[1763615435252,0.1760746,93002.0,92994.0,0.02845263]
[1763615435253,0.08778,92988.0,92987.0,0.06751]
[1763615435448,0.08778,92988.0,92987.0,0.06970803]
[1763615436352,0.1954208,92988.0,92987.0,0.06970803]
[1763615436547,0.03236,92988.0,92987.0,0.17734993]
[1763615436852,0.02033,92997.0,92996.0,0.06751]
[1763615437052,0.5358754,93002.0,93001.0,0.06751]
[1763615437353,0.5358754,93002.0,93001.0,0.06970803]
[1763615437848,0.1750754,93002.0,93001.0,0.06970803]
[1763615438257,0.06745,93002.0,93001.0,0.06970803]
[1763615438754,0.06845,93002.0,93001.0,0.06970803]
[1763615439254,0.06845,93002.0,93001.0,0.00219803]
[1763615439462,0.06745,92995.0,92994.0,0.39341]
[1763615439752,0.06745,92995.0,92994.0,0.43050803]
[1763615439953,0.03236,93000.0,92999.0,0.06751]
[1763615440147,0.03236,93000.0,92999.0,0.06970803]
[1763615441251,0.42825,93006.0,93005.0,0.06751]
[1763615441449,0.42825,93006.0,93005.0,0.06970803]
[1763615441646,0.3608,93006.0,93005.0,0.17732913]
[1763615441848,0.17189,93009.0,93008.0,0.06751]
[1763615442048,0.06745,93009.0,93008.0,0.06970803]
[1763615444064,0.03336,93009.0,93008.0,0.06970803]
[1763615445051,0.06845,93009.0,93008.0,0.06970803]
[1763615446856,0.001,93009.0,93008.0,0.17732563]
[1763615447554,0.06845,93009.0,93008.0,0.06970803]
[1763615449149,0.001,93009.0,93008.0,0.06970803]
[1763615450155,0.06845,93009.0,93008.0,0.06970803]
[1763615450354,0.1750665,93009.0,93008.0,0.00219803]
[1763615450556,0.1750665,93009.0,93008.0,0.06970803]
[1763615451555,0.1750665,93009.0,93008.0,0.00219803]
[1763615453269,0.1760665,93009.0,93008.0,0.00219803]
[1763615453469,0.1750665,93009.0,93008.0,0.00219803]
[1763615453658,0.1760665,93009.0,93008.0,0.00219803]
[1763615455465,0.1750723,93004.0,93003.0,0.3608]
[1763615456060,0.1750723,93004.0,93003.0,0.36299803]
[1763615458156,0.1750723,93004.0,93003.0,0.3608]
[1763615458471,0.06745,92995.0,92994.0,0.3608]
[1763615459463,0.06745,92995.0,92994.0,0.36299803]
[1763615459867,0.06745,92995.0,92994.0,0.36399803]
[1763615460472,0.06845,92995.0,92994.0,0.36399803]
[1763615460965,0.06745,92995.0,92994.0,0.36399803]
[1763615461272,0.1750954,92984.0,92983.0,0.06751]
[1763615461465,0.42825,92989.0,92988.0,0.08759]
[1763615461660,0.42825,92989.0,92988.0,0.08978803]
[1763615462465,0.1044,92992.0,92991.0,0.06509]
[1763615462662,0.001,92995.0,92994.0,0.06509]
[1763615462866,0.001,92995.0,92994.0,0.06728803]
[1763615463062,0.1044,93003.0,93002.0,0.06509]
[1763615463258,0.1044,93003.0,93002.0,0.06728803]
[1763615463476,0.03894054,93011.0,93006.0,0.01862]
[1763615463477,0.1713291,93007.0,93006.0,0.01862]
[1763615463668,0.1713291,93007.0,93006.0,0.08590803]
[1763615465272,0.1713291,93007.0,93006.0,0.00219803]
[1763615465468,0.1713291,93007.0,93006.0,0.06728803]
[1763615465862,0.1723291,93007.0,93006.0,0.06728803]
[1763615466264,0.001,93007.0,93006.0,0.08590803]
[1763615466463,0.5321265,93009.0,93008.0,0.06509]
[1763615466667,0.5321265,93009.0,93008.0,0.06728803]
[1763615468675,0.5331265,93009.0,93008.0,0.06728803]
[1763615469077,0.5321265,93009.0,93008.0,0.06728803]
[1763615469276,0.5331265,93009.0,93008.0,0.06728803]
[1763615470982,0.42551,93009.0,93008.0,0.06728803]
[1763615471167,0.42551,93009.0,93008.0,0.17490563]
[1763615471768,0.42551,93009.0,93008.0,0.06728803]
[1763615472366,0.5001765,93009.0,93008.0,0.06728803]
[1763615472576,0.5331265,93009.0,93008.0,0.06728803]
[1763615473176,0.1713392,92998.0,92997.0,0.08371]
[1763615473370,0.1713392,92998.0,92997.0,0.08590803]
[1763615473879,0.171345,92993.0,92992.0,0.44451]
[1763615474074,0.171345,92993.0,92992.0,0.44670803]
[1763615476776,0.171345,92993.0,92992.0,0.06509]
[1763615476982,0.1713543,92985.0,92984.0,0.42589]
[1763615477277,0.1713543,92985.0,92984.0,0.3608]
[1763615477478,0.1713543,92985.0,92984.0,0.36299803]
[1763615477670,0.1713543,92985.0,92984.0,0.39528803]
[1763615478273,0.1713543,92985.0,92984.0,0.42908803]
[1763615478675,0.1713543,92985.0,92984.0,0.36399803]
[1763615478875,0.03076,92985.0,92984.0,0.08690803]
[1763615479079,0.1076411,92988.0,92987.0,0.06509]
[1763615479383,0.1384011,92988.0,92987.0,0.06728803]
[1763615479879,0.1713511,92988.0,92987.0,0.06728803]
[1763615480081,0.1384135,92977.0,92976.0,0.08371]
[1763615480286,0.1713635,92977.0,92976.0,0.08590803]
[1763615481273,0.1713635,92977.0,92976.0,0.08690803]
[1763615483378,0.1713635,92977.0,92976.0,0.001]
[1763615483577,0.1713635,92977.0,92976.0,0.00319803]
[1763615483984,0.1713635,92977.0,92976.0,0.03548803]
[1763615484175,0.1713635,92977.0,92976.0,0.001]
[1763615484376,0.5321635,92977.0,92976.0,0.001]
[1763615484778,0.5321635,92977.0,92966.0,0.00026892]
[1763615484779,0.1713751,92967.0,92966.0,0.00026892]
[1763615485087,0.1713751,92967.0,92966.0,0.03255892]
[1763615485476,0.1713751,92967.0,92966.0,0.00026892]
[1763615485677,0.1713751,92967.0,92966.0,0.03255892]
[1763615485678,0.06371,92967.0,92966.0,0.03255892]
[1763615485876,0.06371,92967.0,92966.0,0.06955695]
[1763615487279,0.06371,92967.0,92966.0,0.00226892]
[1763615487884,0.06371,92967.0,92966.0,0.06033695]
[1763615488490,0.06371,92967.0,92966.0,0.05933695]
[1763615488893,0.06371,92967.0,92966.0,0.05833695]
[1763615489992,0.06371,92967.0,92966.0,0.00026892]
[1763615490186,0.05846,92953.0,92952.0,0.07449]
[1763615490985,0.05846,92953.0,92952.0,0.02826]
[1763615491186,0.05846,92953.0,92952.0,0.07471803]
[1763615491682,0.05846,92953.0,92952.0,0.07571803]
[1763615491877,0.1661413,92953.0,92952.0,0.001]
[1763615492291,0.1646917,92944.0,92943.0,0.41794335]
[1763615492493,0.1646917,92944.0,92943.0,0.36091335]
[1763615492685,0.1646917,92944.0,92943.0,0.38890335]
[1763615493082,0.1646917,92944.0,92943.0,0.43443335]
[1763615493483,0.1646917,92944.0,92943.0,0.36191335]
[1763615493787,0.1646917,92944.0,92943.0,0.00111335]
[1763615494589,0.1647115,92927.0,92926.0,0.05729903]
[1763615494894,0.1647115,92927.0,92926.0,0.00026903]
[1763615495095,0.1647115,92927.0,92907.0,0.37729]
[1763615495096,0.057,92908.0,92907.0,0.07352]
[1763615495292,0.057,92908.0,92907.0,0.07571803]
[1763615495592,0.05710244,92908.0,92907.0,0.07571803]
[1763615496600,0.05910244,92908.0,92907.0,0.07571803]
[1763615497693,0.00210244,92908.0,92907.0,0.07571803]
[1763615497891,0.00210244,92908.0,92907.0,0.07671803]
[1763615500398,0.00210244,92908.0,92907.0,0.18445253]
[1763615500698,0.05910244,92908.0,92907.0,0.07671803]
[1763615501593,0.05910244,92908.0,92907.0,0.06022803]
[1763615502692,0.05910244,92908.0,92907.0,0.07671803]
[1763615503795,0.00210244,92908.0,92907.0,0.43751803]
[1763615503985,0.00016145,92917.0,92916.0,0.1812441]
[1763615504186,0.00016145,92917.0,92916.0,0.18344213]
[1763615504796,0.00016145,92917.0,92916.0,0.54424213]
[1763615504990,0.3608,92928.0,92927.0,0.1647414]
[1763615505191,0.10444,92933.0,92932.0,0.05703]
[1763615505392,0.10444,92933.0,92932.0,0.05922803]
[1763615505696,0.16144,92933.0,92932.0,0.05922803]
[1763615506101,0.1647125,92926.0,92925.0,0.07352]
[1763615506305,0.1647125,92926.0,92925.0,0.07571803]
[1763615506506,0.057,92926.0,92925.0,0.07571803]
[1763615506894,0.10444,92933.0,92925.0,0.07571803]
[1763615506895,0.1328,92933.0,92932.0,0.05703]
[1763615507094,0.10444,92933.0,92932.0,0.05922803]
[1763615507300,0.2121444,92933.0,92932.0,0.05922803]
[1763615508198,0.2405044,92933.0,92932.0,0.05922803]
[1763615508600,0.2405044,92933.0,92932.0,0.06022803]
[1763615509008,0.2691444,92933.0,92932.0,0.06022803]
[1763615513108,0.2691444,92933.0,92932.0,0.001]
[1763615514504,0.2691444,92933.0,92932.0,0.05803]
[1763615517407,0.2691444,92933.0,92932.0,0.06022803]
[1763615517802,0.2691444,92933.0,92932.0,0.001]
[1763615519400,0.1647148,92924.0,92923.0,0.00016145]
[1763615519603,0.5255148,92924.0,92923.0,0.00016145]
[1763615520006,0.1647276,92913.0,92912.0,0.07352]
[1763615520210,0.1647276,92913.0,92912.0,0.07571803]
[1763615520402,0.1647276,92913.0,92912.0,0.03018803]
[1763615520604,0.1647276,92913.0,92912.0,0.05922803]
[1763615521209,0.1647276,92913.0,92912.0,0.03018803]
[1763615521413,0.1647276,92913.0,92912.0,0.06022803]
[1763615522109,0.1647276,92913.0,92912.0,0.05873803]
[1763615522316,0.1647276,92913.0,92912.0,0.03218803]
[1763615522512,0.46524,92916.0,92915.0,0.05173]
[1763615522700,1e-08,92922.0,92921.0,0.1594483]
[1763615522900,1e-08,92922.0,92921.0,0.05392803]
[1763615524011,1e-08,92922.0,92921.0,0.05492803]
[1763615525421,1e-08,92922.0,92921.0,0.05592803]
[1763615526118,0.10771711,92922.0,92921.0,0.05592803]
[1763615527511,1e-08,92922.0,92921.0,0.00419803]
[1763615531328,0.3608,92935.0,92934.0,0.1752932]
[1763615531517,0.3608,92935.0,92934.0,0.06978803]
[1763615532019,0.0534,92938.0,92934.0,0.01805803]
[1763615532321,0.5218923,92944.0,92943.0,0.05173]
[1763615532633,0.4932923,92944.0,92943.0,0.05392803]
[1763615533325,0.53207159,92944.0,92943.0,0.05392803]
[1763615533721,0.3608,92944.0,92943.0,0.16162083]
[1763615534024,0.00016145,92945.0,92944.0,0.06759]
[1763615534224,0.00016145,92945.0,92944.0,0.43058803]
[1763615535824,0.10328703,92953.0,92952.0,0.06759]
[1763615536021,0.1044,92959.0,92958.0,0.1594054]
[1763615536221,0.3608,92971.0,92965.0,0.05173]
[1763615536426,0.1076652,92967.0,92965.0,0.05392803]
[1763615537411,0.00126892,92966.0,92965.0,0.05392803]
[1763615538316,0.02606892,92966.0,92965.0,0.05392803]
[1763615538531,0.1610766,92957.0,92956.0,0.38514136]
[1763615538821,0.1610766,92957.0,92956.0,0.02653939]
[1763615539219,0.1610766,92957.0,92956.0,0.05408939]
[1763615539816,0.1610766,92957.0,92956.0,0.00016136]
[1763615540016,0.1610766,92957.0,92934.0,0.03797245]
[1763615540017,0.1610905,92945.0,92944.0,0.3608]
[1763615540623,0.1611009,92936.0,92935.0,0.41253]
[1763615540821,0.1611009,92936.0,92935.0,0.41472803]
[1763615541221,0.0534,92936.0,92935.0,0.41472803]
[1763615541424,0.05356136,92945.0,92944.0,0.05173]
[1763615541628,0.05356136,92945.0,92944.0,0.05392803]
[1763615542222,0.05356136,92945.0,92944.0,0.02637803]
[1763615542429,0.05356136,92945.0,92944.0,0.00219803]
[1763615543736,0.0534,92927.0,92926.0,0.05189136]
[1763615543931,0.0534,92927.0,92926.0,0.05408939]
[1763615544127,0.0248,92927.0,92926.0,0.05408939]
[1763615544837,0.0248,92927.0,92926.0,0.05508939]
[1763615545931,0.1077104,92928.0,92927.0,0.05173]
[1763615546136,0.1325067,92932.0,92931.0,0.05173]
[1763615546337,0.1611067,92932.0,92931.0,0.05392803]
[1763615551638,0.1611067,92932.0,92931.0,0.00219803]
[1763615553636,0.5219067,92932.0,92931.0,0.00219803]
[1763615553936,0.1552414,92927.0,92926.0,0.00016136]
[1763615554131,0.2596014,92927.0,92926.0,0.00016136]
[1763615556037,0.2596014,92927.0,92926.0,0.00116136]
[1763615566434,0.2596014,92927.0,92926.0,0.05132939]
[1763615566435,0.04753,92927.0,92926.0,0.05132939]
[1763615566640,0.1044,92928.0,92927.0,0.04797]
[1763615566840,0.1044,92928.0,92927.0,0.05016803]
[1763615567039,0.12844,92928.0,92927.0,0.05016803]
[1763615568049,0.15193,92928.0,92927.0,0.05016803]
[1763615568233,0.15193,92928.0,92927.0,0.05116803]
[1763615575441,0.15193,92928.0,92927.0,0.00319803]
[1763615579538,0.15193,92928.0,92927.0,0.001]
[1763615580944,0.1552414,92927.0,92926.0,0.00016136]
[1763615581150,0.1552541,92916.0,92915.0,0.38472]
[1763615581550,0.1552541,92916.0,92915.0,0.38691803]
[1763615581851,0.1552541,92916.0,92915.0,0.41096803]
[1763615583562,0.1552541,92916.0,92915.0,0.41196803]
[1763615584055,0.1552541,92916.0,92915.0,0.41296803]
[1763615585951,0.1552541,92916.0,92915.0,0.00419803]
[1763615586151,0.1552541,92916.0,92915.0,0.002]
[1763615586352,0.1532869,92905.0,92904.0,0.06032]
[1763615586553,0.1532869,92905.0,92904.0,0.06251803]
[1763615587254,0.1532869,92905.0,92904.0,0.04833803]
[1763615587460,0.1552869,92905.0,92904.0,0.04833803]
[1763615587758,0.1552869,92905.0,92904.0,0.04933803]
[1763615588854,0.1552869,92905.0,92904.0,0.001]
[1763615589355,0.1552869,92905.0,92904.0,0.06250803]
[1763615589356,0.04755,92905.0,92904.0,0.06250803]
[1763615589547,0.02505,92905.0,92904.0,0.06250803]
[1763615589753,0.04755,92905.0,92904.0,0.06250803]
[1763615593357,0.002,92905.0,92904.0,0.42330803]
[1763615594562,0.1097369,92905.0,92904.0,0.42330803]
[1763615594763,0.002,92905.0,92904.0,0.42330803]
[1763615596750,0.02505,92905.0,92904.0,0.42330803]
[1763615596950,0.04755,92905.0,92904.0,0.06250803]
[1763615598252,0.02505,92905.0,92904.0,0.06250803]
[1763615598864,0.002,92905.0,92904.0,0.06250803]
[1763615599257,0.002,92905.0,92904.0,0.42330803]
[1763615602059,0.3608,92913.0,92909.0,0.1538723]
[1763615602060,0.1077321,92910.0,92909.0,0.1538723]
[1763615602266,0.1077321,92910.0,92909.0,0.15607033]
[1763615603368,0.1077321,92910.0,92909.0,0.15807033]
[1763615606767,0.1532821,92910.0,92909.0,0.05033803]
[1763615609066,0.1532821,92910.0,92909.0,0.002]
[1763615609264,0.1532821,92910.0,92909.0,0.02469]
[1763615609463,0.1532821,92910.0,92909.0,0.002]
[1763615609862,0.1626221,92910.0,92909.0,0.002]
[1763615610169,0.1511438,92899.0,92898.0,0.0582]
[1763615610466,0.12527271,92899.0,92898.0,0.06039803]
[1763615611261,0.12627271,92899.0,92898.0,0.06039803]
[1763615612164,0.12627271,92899.0,92898.0,0.06139803]
[1763615613667,0.12627271,92899.0,92898.0,0.04698803]
[1763615613874,0.12627271,92899.0,92898.0,0.001]
[1763615614067,0.18441114,92899.0,92898.0,0.00083856]
[1763615614271,0.12627271,92899.0,92898.0,0.00083856]
[1763615614874,0.1512177,92887.0,92886.0,0.05623915]
[1763615615073,0.1512177,92887.0,92886.0,0.05843718]
[1763615616164,0.1512177,92887.0,92886.0,0.05943718]
[1763615616765,0.1522177,92887.0,92886.0,0.05943718]
[1763615616966,0.04446,92887.0,92886.0,0.05943718]
[1763615617166,0.001,92887.0,92886.0,0.05943718]
[1763615617563,0.1512089,92895.0,92894.0,0.0428]
[1763615617768,0.1512089,92895.0,92894.0,0.04499803]
[1763615618973,0.1512089,92895.0,92894.0,0.04599803]
[1763615619472,0.1512089,92895.0,92894.0,0.02489803]
[1763615620074,0.1522089,92895.0,92894.0,0.00319803]
[1763615620273,0.1512177,92887.0,92886.0,0.05623915]
[1763615620474,0.1512177,92887.0,92886.0,0.05697182]
[1763615620475,0.15341573,92887.0,92886.0,0.05697182]
[1763615620672,0.04565803,92887.0,92886.0,0.05697182]
[1763615621476,0.04665803,92887.0,92886.0,0.05797182]
[1763615621680,0.04665803,92887.0,92886.0,0.04480182]
[1763615622384,0.04665803,92887.0,92886.0,0.05775182]
[1763615622767,0.04665803,92887.0,92886.0,0.04480182]
[1763615622969,0.04665803,92887.0,92886.0,0.00126915]
[1763615624081,0.04665803,92887.0,92886.0,0.00026915]
[1763615624281,0.04665803,92887.0,92886.0,0.00126915]
[1763615624675,0.04565803,92887.0,92886.0,0.00126915]
[1763615629678,0.04346,92869.0,92868.0,0.05575]
[1763615629881,0.15343663,92869.0,92868.0,0.05648267]
[1763615630686,0.04565803,92869.0,92868.0,0.05648267]
[1763615630876,0.04565803,92869.0,92868.0,0.16526247]
[1763615631279,0.04346,92888.0,92886.0,0.01295]
[1763615631480,0.10651803,92887.0,92886.0,0.41655]
[1763615631679,0.10651803,92887.0,92886.0,0.41728267]
[1763615632285,0.00219803,92887.0,92886.0,0.41728267]
[1763615632476,0.00219803,92887.0,92886.0,0.41828267]
[1763615633991,0.00219803,92887.0,92886.0,0.42028267]
[1763615638105,0.1077526,92892.0,92891.0,0.1505531]
[1763615638304,0.00219803,92892.0,92891.0,0.15128577]
[1763615639294,0.00219803,92892.0,92891.0,0.15228577]
[1763615641402,0.00219803,92892.0,92891.0,0.04453267]
[1763615641708,0.04565803,92892.0,92891.0,0.04453267]
[1763615642907,0.04565803,92892.0,92891.0,0.001]
[1763615643400,0.04565803,92892.0,92891.0,0.04604]
[1763615643602,0.04565803,92892.0,92891.0,0.04677267]
[1763615646909,0.02430803,92892.0,92891.0,0.04677267]
[1763615647102,0.00219803,92892.0,92891.0,0.04677267]
[1763615647299,0.00016146,92896.0,92895.0,0.04504]
[1763615647502,0.3608,92923.0,92922.0,0.059]
[1763615647712,0.11017996,92926.0,92925.0,0.04504]
[1763615647906,0.11017996,92926.0,92925.0,0.04577267]
[1763615648217,0.15459996,92926.0,92925.0,0.04577267]
[1763615648515,0.00246706,92926.0,92925.0,0.15348637]
[1763615648804,0.00026903,92926.0,92925.0,0.15348637]
[1763615650811,0.00126903,92926.0,92925.0,0.15348637]
[1763615651402,0.3608,92934.0,92933.0,0.04504]
[1763615651608,0.3608,92934.0,92933.0,0.04577267]
[1763615652605,0.3618,92934.0,92933.0,0.04577267]
[1763615653110,0.3638,92934.0,92933.0,0.04577267]
[1763615654102,0.4715032,92934.0,92933.0,0.04577267]
[1763615654308,0.51812123,92934.0,92933.0,0.04577267]
[1763615660014,0.51812123,92934.0,92933.0,0.00073267]
[1763615660413,0.04442,92923.0,92922.0,0.01396]
[1763615660610,0.04661803,92923.0,92922.0,0.05973267]
[1763615662415,0.04761803,92923.0,92922.0,0.05973267]
[1763615663221,0.40841803,92923.0,92922.0,0.00073267]
[1763615664319,0.40841803,92923.0,92922.0,0.02368267]
[1763615664523,0.40841803,92923.0,92922.0,0.04577267]
[1763615664723,0.00319803,92923.0,92922.0,0.04577267]
[1763615667614,0.001,92923.0,92922.0,0.04577267]
[1763615670815,0.3608,92944.0,92926.0,0.1077125]
[1763615671021,0.41893843,92952.0,92951.0,0.04511]
[1763615671022,0.40595,92952.0,92951.0,0.04511]
[1763615671222,0.40814803,92952.0,92951.0,0.04584267]
[1763615671528,0.51583043,92952.0,92951.0,0.04584267]
[1763615672426,0.51683043,92952.0,92951.0,0.04584267]
[1763615673923,0.02652803,92952.0,92951.0,0.04584267]
[1763615674129,0.04834803,92952.0,92951.0,0.04584267]
[1763615674924,0.04734803,92952.0,92951.0,0.04584267]
[1763615675523,0.04734803,92952.0,92951.0,0.04684267]
[1763615683021,0.04734803,92952.0,92951.0,0.02394267]
[1763615683425,0.04734803,92952.0,92951.0,0.04619267]
[1763615686333,0.05720803,92952.0,92951.0,0.001]
[1763615687837,0.04411,92943.0,92942.0,0.00016146]
[1763615688034,0.04630803,92943.0,92942.0,0.00016146]
[1763615688235,0.15400083,92943.0,92942.0,0.00016146]
[1763615688830,0.15400083,92943.0,92942.0,0.04527413]
[1763615689643,0.04630803,92943.0,92942.0,0.04527413]
[1763615689843,0.02448803,92943.0,92942.0,0.04527413]
[1763615690147,0.00219803,92943.0,92942.0,0.04527413]
[1763615690442,0.04730803,92943.0,92942.0,0.04527413]
[1763615692139,0.04730803,92943.0,92942.0,0.02302413]
[1763615692543,0.04730803,92943.0,92942.0,0.04527413]
[1763615695042,0.04730803,92943.0,92942.0,0.15296813]
[1763615695043,0.00319803,92943.0,92942.0,0.15296813]
[1763615695242,0.00319803,92943.0,92942.0,0.04527413]
[1763615696043,0.04730803,92943.0,92942.0,0.04527413]
[1763615697440,0.04730803,92943.0,92942.0,0.02302413]
[1763615697641,0.04730803,92943.0,92942.0,0.04527413]
[1763615700146,0.04730803,92943.0,92942.0,0.04627413]
[1763615700647,0.00219803,92943.0,92942.0,0.04627413]
[1763615700856,0.00219803,92943.0,92942.0,0.40707413]
[1763615701150,0.00219803,92943.0,92942.0,0.04627413]
[1763615702846,0.04989023,92944.0,92943.0,0.0454]
[1763615703144,0.03864669,92946.0,92945.0,0.0465]
[1763615703344,0.1289073,92948.0,92947.0,0.0465]
[1763615703545,0.1289073,92948.0,92947.0,0.04869803]
[1763615703740,0.03864669,92949.0,92948.0,0.0465]
[1763615703957,0.0728963,93000.0,92951.0,0.1541835]
[1763615703958,0.03864669,92953.0,92951.0,0.1541835]
[1763615704251,0.50712619,92955.0,92954.0,0.1541801]
[1763615704454,0.50712619,92955.0,92954.0,0.04869803]
[1763615704754,0.52834619,92955.0,92954.0,0.04869803]
[1763615704950,0.50712619,92955.0,92954.0,0.04869803]
[1763615705152,0.03493862,92955.0,92954.0,0.91365803]
[1763615705351,0.00026892,92966.0,92958.0,0.1076754]
[1763615705657,0.00026892,92966.0,92965.0,0.47066533]
[1763615705947,0.00026892,92966.0,92965.0,0.57482533]
[1763615706946,0.00026892,92966.0,92965.0,0.57582533]
[1763615707360,0.01382,92974.0,92973.0,0.1076581]
[1763615707654,0.01382,92974.0,92973.0,0.47065613]
[1763615708056,0.00016136,92975.0,92973.0,0.47065613]
[1763615708659,0.04442,92974.0,92973.0,0.36299803]
[1763615708844,0.04442,92974.0,92973.0,0.46715803]
[1763615709556,0.04442,92974.0,92973.0,0.46815803]
[1763615709950,0.00016136,92975.0,92974.0,0.1076569]
[1763615710255,0.00016136,92975.0,92974.0,0.10985493]
[1763615710651,0.00016136,92975.0,92974.0,0.21401493]
[1763615711158,0.00016136,92975.0,92974.0,0.21501493]
[1763615711354,0.00016136,92975.0,92974.0,0.10735803]
[1763615711558,0.02138136,92975.0,92974.0,0.10735803]
[1763615712662,0.02138136,92975.0,92974.0,0.10935803]
[1763615713171,0.02138136,92975.0,92974.0,0.10735803]
[1763615713366,0.02138136,92975.0,92974.0,0.10935803]
[1763615713662,0.04458136,92975.0,92974.0,0.10935803]
[1763615714559,0.04458136,92975.0,92974.0,0.00519803]
[1763615714755,0.1520874,92965.0,92964.0,0.36096136]
[1763615714950,0.1520874,92965.0,92964.0,0.36315939]
[1763615715167,0.1520874,92965.0,92964.0,0.00235939]
[1763615715663,0.1520874,92965.0,92964.0,0.00016136]
[1763615715865,0.1520874,92965.0,92964.0,1.36e-06]
[1763615716165,0.1520966,92957.0,92956.0,0.3608]
[1763615716557,0.1520966,92957.0,92956.0,0.36299803]
[1763615717465,0.1520966,92957.0,92956.0,0.00219803]
[1763615717850,0.107687,92948.0,92947.0,0.00016136]
[1763615718055,0.152107,92948.0,92947.0,0.00016136]
[1763615719263,0.155107,92948.0,92947.0,0.00235939]
[1763615719652,0.04742,92948.0,92947.0,0.00235939]
[1763615720459,0.155107,92948.0,92947.0,0.00235939]
[1763615723572,0.1659409,92936.0,92935.0,0.3608]
[1763615723760,0.1659409,92936.0,92935.0,0.36299803]
[1763615725155,0.1679409,92936.0,92935.0,0.36299803]
[1763615731472,0.06024,92936.0,92935.0,0.36299803]
[1763615732168,0.1679409,92936.0,92935.0,0.36299803]
[1763615733864,0.01582,92936.0,92935.0,0.36299803]
[1763615734081,0.002,92936.0,92935.0,0.36299803]
[1763615736580,0.02477,92936.0,92935.0,0.36299803]
[1763615736787,0.04736,92936.0,92935.0,0.36299803]
[1763615744700,0.04536,92936.0,92935.0,0.36299803]
[1763615745796,0.04536,92936.0,92935.0,0.36399803]
[1763615746306,0.04536,92936.0,92935.0,0.36499803]
[1763615746798,0.04536,92936.0,92935.0,0.36399803]
[1763615747101,0.04536,92936.0,92935.0,0.36499803]
[1763615747290,0.04536,92936.0,92935.0,0.36399803]
[1763615747491,0.04536,92936.0,92935.0,0.36499803]
[1763615747899,0.02277,92936.0,92935.0,0.36499803]
[1763615748399,0.04536,92936.0,92935.0,0.36499803]
[1763615750006,0.0362,92939.0,92936.0,0.1077009]
[1763615750208,0.0362,92939.0,92938.0,0.00219803]
[1763615750411,0.05879,92939.0,92938.0,0.00219803]
[1763615750810,0.05879,92939.0,92930.0,0.03815502]
[1763615750811,0.02277,92930.0,92929.0,0.03827935]
[1763615750999,0.02277,92930.0,92929.0,0.00012433]
[1763615751000,0.04536,92930.0,92929.0,0.00012433]
[1763615752410,0.04536,92930.0,92929.0,0.00232236]
[1763615753013,0.04536,92930.0,92929.0,0.00532236]
[1763615753713,0.04536,92930.0,92929.0,0.00432236]
[1763615754312,0.04536,92930.0,92929.0,0.00232236]
[1763615754513,0.04536,92930.0,92929.0,0.00332236]
[1763615755409,0.04536,92930.0,92929.0,0.00432236]
[1763615756113,0.04536,92930.0,92929.0,0.00332236]
[1763615756815,0.04536,92930.0,92929.0,0.00112433]
[1763615757420,0.04536,92930.0,92929.0,0.00012433]